fUSD/lending_fUSD_20240625
["ID","MTS","AMOUNT","RATE_DAILY","PERIOD"]
[330369768,1719337850740,-500.0,0.00019178,2]
[330369769,1719337850750,-500.0,0.00019178,2]
[330369770,1719337850759,-2133.33,0.00019178,2]
[330369771,1719337850769,-3599.25,0.00019178,2]
[330369772,1719337850778,-387.20319236,0.00019178,2]
[330369773,1719337850788,-500.0,0.00019178,2]
[330369774,1719337850798,-500.0,0.00019178,2]
[330369775,1719337850808,-497.6367809,0.00019178,2]
[330369776,1719337850818,-1003.49,0.00019178,2]
[330369777,1719337850828,-3089.03,0.00019178,2]
[330369778,1719337850837,-13348.12,0.00019178,2]
[330369779,1719337850847,-804.85,0.00019178,2]
[330369780,1719337850856,-500.0,0.00019178,2]
[330369781,1719337850865,-500.0,0.00019178,2]
[330369782,1719337850874,-500.0,0.00019178,2]
[330369783,1719337850884,-3865.6,0.00019178,2]
[330369784,1719337850893,-500.0,0.00019178,2]
[330369785,1719337850902,-19322.86,0.00019178,2]
[330369786,1719337850911,-1591.79,0.00019178,2]
[330369787,1719337850920,-500.0,0.00019178,2]
[330369788,1719337850929,-517.33097707,0.00019178,2]
[330369789,1719337850939,-828.38,0.00019178,2]
[330369790,1719337850949,-500.0,0.00019178,2]
[330369791,1719337850958,-500.0,0.00019178,2]
[330369792,1719337850968,-516.72,0.00019178,2]
[330369793,1719337850977,-500.0,0.00019178,2]
[330369794,1719337850986,-500.0,0.00019178,2]
[330369795,1719337850996,-500.0,0.00019178,2]
[330369796,1719337851005,-500.0,0.00019178,2]
[330369797,1719337851014,-334.65187372,0.00019178,2]
[330369798,1719337851024,-3823.25,0.00019178,2]
[330369799,1719337851033,-2767.76,0.00019178,2]
[330369800,1719337851043,-503.96223907,0.00019178,2]
[330369801,1719337851052,-1930.49,0.00019178,2]
[330369802,1719337851234,-2132.96,0.00019178,2]
[330369803,1719337851244,-829.42,0.00019178,2]
[330369804,1719337851253,-2051.61,0.00019178,2]
[330369805,1719337851262,-768.12,0.00019178,2]
[330369806,1719337851272,-500.0,0.00019178,2]
[330369807,1719337851281,-500.0,0.00019178,2]
[330369808,1719337851291,-1106.84,0.00019178,2]
[330369809,1719337851302,-500.0,0.00019178,2]
[330369810,1719337851311,-9367.05,0.00019178,2]
[330369811,1719337851321,-500.0,0.00019178,2]
[330369812,1719337851330,-500.0,0.00019178,2]
[330369813,1719337851342,-3643.02,0.00019178,2]
[330369814,1719337851351,-2716.1,0.00019178,2]
[330369815,1719337851361,-571.25,0.00019178,2]
[330369816,1719337851370,-500.0,0.00019178,2]
[330369817,1719337851380,-1026.1,0.00019178,2]
[330369818,1719337851388,-500.0,0.00019178,2]
[330369819,1719337851396,-5116.79,0.00019178,2]
[330369820,1719337851406,-6152.62,0.00019178,2]
[330369821,1719337851415,-500.0,0.00019178,2]
[330369822,1719337851424,-500.0,0.00019178,2]
[330369823,1719337851434,-500.0,0.00019178,2]
[330369824,1719337851443,-500.0,0.00019178,2]
[330369825,1719337851453,-500.0,0.00019178,2]
[330369826,1719337851463,-19689.46,0.00019178,2]
[330369827,1719337851472,-500.0,0.00019178,2]
[330369828,1719337851481,-658.03,0.00019178,2]
[330369829,1719337851491,-20168.94,0.00019178,2]
[330369830,1719337851501,-500.0,0.00019178,2]
[330369831,1719337851510,-500.0,0.00019178,2]
[330369832,1719337851520,-554.03940843,0.00019178,2]
[330369833,1719337851530,-1640.24,0.00019178,2]
[330369834,1719337851539,-500.0,0.00019178,2]
[330369835,1719337851549,-1760.02,0.00019178,2]
[330369836,1719337851558,-500.0,0.00019178,2]
[330369837,1719337851568,-500.0,0.00019178,2]
[330369838,1719337851578,-500.0,0.00019178,2]
[330369839,1719337851587,-500.0,0.00019178,2]
[330369840,1719337851597,-1038.72,0.00019178,2]
[330369841,1719337851607,-500.0,0.00019178,2]
[330369842,1719337851616,-3388.45,0.00019178,2]
[330369843,1719337851626,-500.0,0.00019178,2]
[330369844,1719337851635,-500.0,0.00019178,2]
[330369845,1719337851645,-500.0,0.00019178,2]
[330369846,1719337851654,-4133.33,0.00019178,2]
[330369847,1719337851663,-500.0,0.00019178,2]
[330369848,1719337851673,-1249.47,0.00019178,2]
[330369849,1719337851682,-709.2,0.00019178,2]
[330369850,1719337851692,-2499.52,0.00019178,2]
[330369851,1719337851701,-2511.23,0.00019178,2]
[330369852,1719337851710,-500.0,0.00019178,2]
[330369853,1719337851719,-991.31,0.00019178,2]
[330369854,1719337851729,-500.0,0.00019178,2]
[330369855,1719337851738,-500.0,0.00019178,2]
[330369856,1719337851748,-16464.04,0.00019178,2]
[330369857,1719337851757,-1636.71,0.00019178,2]
[330369858,1719337851766,-500.0,0.00019178,2]
[330369859,1719337851775,-4519.25,0.00019178,2]
[330369860,1719337851784,-1279.93,0.00019178,2]
[330369861,1719337851793,-500.0,0.00019178,2]
[330369862,1719337851802,-500.0,0.00019178,2]
[330369863,1719337851811,-711.6,0.00019178,2]
[330369864,1719337851821,-635.3,0.00019178,2]
[330369865,1719337851830,-813.02,0.00019178,2]
[330369866,1719337851840,-867.36,0.00019178,2]
[330369867,1719337851849,-984.69,0.00019178,2]
[330369868,1719337851859,-500.0,0.00019178,2]
[330369869,1719337851867,-2863.52,0.00019178,2]
[330369870,1719337851877,-207.649236,0.00019178,2]
[330369871,1719337851886,-1078.44,0.00019178,2]
[330369872,1719337851896,-579.91,0.00019178,2]
[330369873,1719337851906,-303.10717947,0.00019178,2]
[330369874,1719337851916,-500.0,0.00019178,2]
[330369875,1719337851926,-6876.69,0.00019178,2]
[330369876,1719337851935,-500.0,0.00019178,2]
[330369877,1719337851945,-500.0,0.00019178,2]
[330369878,1719337851956,-1635.81,0.00019178,2]
[330369879,1719337851965,-894.63,0.00019178,2]
[330369880,1719337851974,-151.0,0.00019178,2]
[330369881,1719337851984,-12811.41,0.00019178,2]
[330369882,1719337851993,-511.61,0.00019178,2]
[330369883,1719337852002,-500.0,0.00019178,2]
[330369884,1719337852012,-500.0,0.00019178,2]
[330369885,1719337852021,-207.649236,0.00019178,2]
[330369886,1719337852034,-500.0,0.00019178,2]
[330369887,1719337852043,-724.58,0.00019178,2]
[330369888,1719337852053,-770.48,0.00019178,2]
[330369889,1719337852062,-500.0,0.00019178,2]
[330369890,1719337852071,-1778.16,0.00019178,2]
[330369891,1719337852081,-500.0,0.00019178,2]
[330369892,1719337852090,-2214.33,0.00019178,2]
[330369893,1719337852099,-627.16,0.00019178,2]
[330369894,1719337852108,-500.0,0.00019178,2]
[330369895,1719337852118,-1194.74,0.00019178,2]
[330369896,1719337852128,-500.0,0.00019178,2]
[330369897,1719337852140,-8218.06,0.00019178,2]
[330369898,1719337852150,-500.0,0.00019178,2]
[330369899,1719337852159,-500.0,0.00019178,2]
[330369900,1719337852169,-952.48,0.00019178,2]
[330369901,1719337852179,-6829.1,0.00019178,2]
[330369902,1719337852189,-1503.01994,0.00019178,2]
[330369903,1719337852198,-250.0,0.00019178,2]
[330369904,1719337852208,-2323.75,0.00019178,2]
[330369905,1719337852218,-1807.94,0.00019178,2]
[330369906,1719337852228,-646.01,0.00019178,2]
[330369907,1719337852238,-500.0,0.00019178,2]
[330369908,1719337852247,-533.6,0.00019178,2]
[330369909,1719337852256,-1023.86,0.00019178,2]
[330369910,1719337852266,-11065.02,0.00019178,2]
[330369911,1719337852276,-500.0,0.00019178,2]
[330369912,1719337852286,-500.0,0.00019178,2]
[330369913,1719337852296,-500.0,0.00019178,2]
[330369914,1719337852307,-500.0,0.00019178,2]
[330369915,1719337852318,-514.2666846,0.00019178,2]
[330369916,1719337852328,-539.11,0.00019178,2]
[330369917,1719337852340,-500.0,0.00019178,2]
[330369918,1719337852350,-1104.07,0.00019178,2]
[330369919,1719337852359,-500.0,0.00019178,2]
[330369920,1719337852368,-500.0,0.00019178,2]
[330369921,1719337852378,-663.89,0.00019178,2]
[330369922,1719337852387,-600.35,0.00019178,2]
[330369923,1719337852396,-501.0,0.00019178,2]
[330369924,1719337852405,-500.0,0.00019178,2]
[330369925,1719337852414,-1481.84,0.00019178,2]
[330369926,1719337852423,-1680.53,0.00019178,2]
[330369927,1719337852432,-522.35,0.00019178,2]
[330369928,1719337852441,-5478.65,0.00019178,2]
[330369929,1719337852456,-661.17,0.00019178,2]
[330369930,1719337852473,-500.0,0.00019178,2]
[330369931,1719337852489,-500.0,0.00019178,2]
[330369932,1719337852507,-886.73,0.00019178,2]
[330369933,1719337852525,-3657.63,0.00019178,2]
[330369934,1719337852541,-594.55548277,0.00019178,2]
[330369935,1719337852560,-500.0,0.00019178,2]
[330369936,1719337852578,-500.0,0.00019178,2]
[330369937,1719337852593,-2543.7,0.00019178,2]
[330369938,1719337852610,-10088.1,0.00019178,2]
[330369939,1719337852631,-2456.25,0.00019178,2]
[330369940,1719337852645,-1656.09,0.00019178,2]
[330369941,1719337852660,-570.1501792,0.00019178,2]
[330369942,1719337852676,-500.0,0.00019178,2]
[330369943,1719337852691,-500.0,0.00019178,2]
[330369944,1719337852706,-2328.62,0.00019178,2]
[330369945,1719337852719,-3868.22,0.00019178,2]
[330369946,1719337852734,-500.0,0.00019178,2]
[330369947,1719337852748,-1796.89,0.00019178,2]
[330369948,1719337852763,-500.0,0.00019178,2]
[330369949,1719337852777,-4014.66,0.00019178,2]
[330369950,1719337852798,-500.0,0.00019178,2]
[330369951,1719337852813,-500.0,0.00019178,2]
[330369952,1719337852828,-208.71175081,0.00019178,2]
[330369953,1719337852842,-7129.8,0.00019178,2]
[330369954,1719337852858,-500.0,0.00019178,2]
[330369955,1719337852873,-500.0,0.00019178,2]
[330369956,1719337852887,-500.0,0.00019178,2]
[330369957,1719337852902,-500.0,0.00019178,2]
[330369958,1719337852917,-3434.69,0.00019178,2]
[330369959,1719337852931,-2063.73,0.00019178,2]
[330369960,1719337852945,-3567.64,0.00019178,2]
[330369961,1719337852960,-914.75,0.00019178,2]
[330369962,1719337852976,-1821.82,0.00019178,2]
[330369963,1719337852991,-1475.68,0.00019178,2]
[330369964,1719337853005,-500.0,0.00019178,2]
[330369965,1719337853020,-546.57,0.00019178,2]
[330369966,1719337853035,-500.0,0.00019178,2]
[330369967,1719337853050,-750.23,0.00019178,2]
[330369968,1719337853066,-559.73,0.00019178,2]
[330369969,1719337853081,-500.0,0.00019178,2]
[330369970,1719337853096,-500.0,0.00019178,2]
[330369971,1719337853111,-500.0,0.00019178,2]
[330369972,1719337853126,-500.0,0.00019178,2]
[330369973,1719337853144,-14507.85,0.00019178,2]
[330369974,1719337853158,-500.0,0.00019178,2]
[330369975,1719337853174,-500.0,0.00019178,2]
[330369976,1719337853191,-500.0,0.00019178,2]
[330369977,1719337853206,-500.0,0.00019178,2]
[330369978,1719337853221,-2198.32,0.00019178,2]
[330369979,1719337853235,-38249.94,0.00019178,2]
[330369980,1719337853251,-500.0,0.00019178,2]
[330369981,1719337853265,-1011.11,0.00019178,2]
[330369982,1719337853280,-1316.74,0.00019178,2]
[330369983,1719337853296,-500.0,0.00019178,2]
[330369984,1719337853311,-500.0,0.00019178,2]
[330369985,1719337853327,-500.0,0.00019178,2]
[330369986,1719337853344,-500.0,0.00019178,2]
[330369987,1719337853359,-887.9,0.00019178,2]
[330369988,1719337853374,-500.0,0.00019178,2]
[330369989,1719337853388,-27014.67,0.00019178,2]
[330369990,1719337853403,-697.9,0.00019178,2]
[330369991,1719337853419,-500.0,0.00019178,2]
[330369992,1719337853433,-531.21422862,0.00019178,2]
[330369993,1719337853448,-1003.68,0.00019178,2]
[330369994,1719337853463,-500.0,0.00019178,2]
[330369995,1719337853478,-500.0,0.00019178,2]
[330369996,1719337853493,-500.0,0.00019178,2]
[330369997,1719337853508,-1975.91,0.00019178,2]
[330369998,1719337853523,-1806.83,0.00019178,2]
[330369999,1719337853537,-500.0,0.00019178,2]
[330370000,1719337853563,-1578.23,0.00019178,2]
[330370001,1719337853590,-4800.32,0.00019178,2]
[330370002,1719337853615,-1550.6,0.00019178,2]
[330370003,1719337853634,-500.0,0.00019178,2]
[330370004,1719337853649,-500.0,0.00019178,2]
[330370005,1719337853664,-726.31,0.00019178,2]
[330370006,1719337853678,-500.0,0.00019178,2]
[330370007,1719337853693,-3087.64,0.00019178,2]
[330370008,1719337853707,-500.0,0.00019178,2]
[330370009,1719337853722,-486.544328,0.00019178,2]
[330370010,1719337853736,-151.0,0.00019178,2]
[330370011,1719337853751,-1230.61,0.00019178,2]
[330370012,1719337853766,-486.544328,0.00019178,2]
[330370013,1719337853781,-486.544328,0.00019178,2]
[330370014,1719337853797,-486.544328,0.00019178,2]
[330370015,1719337853811,-500.0,0.00019178,2]
[330370016,1719337853827,-500.0,0.00019178,2]
[330370017,1719337853843,-3280.0,0.00019178,2]
[330370018,1719337853859,-500.0,0.00019178,2]
[330370019,1719337853874,-500.0,0.00019178,2]
[330370020,1719337853889,-297.163038,0.00019178,2]
[330370021,1719337853903,-486.544328,0.00019178,2]
[330370022,1719337853918,-500.0,0.00019178,2]
[330370023,1719337853933,-500.0,0.00019178,2]
[330370024,1719337853947,-486.544328,0.00019178,2]
[330370025,1719337853961,-679.84,0.00019178,2]
[330370026,1719337853976,-486.544328,0.00019178,2]
[330370027,1719337853990,-486.544328,0.00019178,2]
[330370028,1719337854005,-500.0,0.00019178,2]
[330370029,1719337854020,-500.0,0.00019178,2]
[330370030,1719337854035,-500.0,0.00019178,2]
[330370031,1719337854052,-1791.93,0.00019178,2]
[330370032,1719337854068,-3886.27,0.00019178,2]
[330370033,1719337854083,-500.0,0.00019178,2]
[330370034,1719337854098,-500.0,0.00019178,2]
[330370035,1719337854113,-709.69,0.00019178,2]
[330370036,1719337854128,-874.77,0.00019178,2]
[330370037,1719337854146,-858.99,0.00019178,2]
[330370038,1719337854161,-3522.11,0.00019178,2]
[330370039,1719337854176,-500.0,0.00019178,2]
[330370040,1719337854191,-17618.37,0.00019178,2]
[330370041,1719337854206,-500.0,0.00019178,2]
[330370042,1719337854222,-1076.73,0.00019178,2]
[330370043,1719337854236,-587.49,0.00019178,2]
[330370044,1719337854251,-500.0,0.00019178,2]
[330370045,1719337854266,-500.0,0.00019178,2]
[330370046,1719337854281,-298.09258103,0.00019178,2]
[330370047,1719337854298,-500.0,0.00019178,2]
[330370048,1719337854314,-9360.45,0.00019178,2]
[330370049,1719337854329,-2768.81,0.00019178,2]
[330370050,1719337854346,-3587.57,0.00019178,2]
[330370051,1719337854361,-1531.05,0.00019178,2]
[330370052,1719337854377,-325.16678034,0.00019178,2]
[330370053,1719337854391,-500.0,0.00019178,2]
[330370054,1719337854406,-654.5,0.00019178,2]
[330370055,1719337854668,-588.37,0.00019178,2]
[330370056,1719337854704,-1310.42,0.00019178,2]
[330370057,1719337854713,-4130.12,0.00019178,2]
[330370058,1719337854722,-500.0,0.00019178,2]
[330370059,1719337854731,-2960.82,0.00019178,2]
[330370060,1719337854740,-500.0,0.00019178,2]
[330370061,1719337854749,-1063.93,0.00019178,2]
[330370062,1719337854759,-2408.83,0.00019178,2]
[330370063,1719337854768,-500.0,0.00019178,2]
[330370064,1719337854778,-3984.57,0.00019178,2]
[330370065,1719337854787,-500.0,0.00019178,2]
[330370066,1719337854798,-799.95,0.00019178,2]
[330370067,1719337854807,-10614.48,0.00019178,2]
[330370068,1719337854816,-1748.04,0.00019178,2]
[330370069,1719337854826,-512.95141128,0.00019178,2]
[330370070,1719337854835,-5401.34,0.00019178,2]
[330370071,1719337854843,-500.0,0.00019178,2]
[330370072,1719337854853,-792.5,0.00019178,2]
[330370073,1719337854862,-516.33882819,0.00019178,2]
[330370074,1719337854871,-550.72,0.00019178,2]
[330370075,1719337854880,-3298.16,0.00019178,2]
[330370076,1719337854889,-1468.33,0.00019178,2]
[330370077,1719337854898,-1075.13,0.00019178,2]
[330370078,1719337854907,-500.0,0.00019178,2]
[330370079,1719337854917,-500.0,0.00019178,2]
[330370080,1719337854926,-12850.46,0.00019178,2]
[330370081,1719337854935,-1746.97,0.00019178,2]
[330370082,1719337854945,-500.0,0.00019178,2]
[330370083,1719337854954,-3728.91,0.00019178,2]
[330370084,1719337854964,-500.0,0.00019178,2]
[330370085,1719337854973,-6211.69,0.00019178,2]
[330370086,1719337854983,-1619.57,0.00019178,2]
[330370087,1719337854992,-533.36,0.00019178,2]
[330370088,1719337855002,-575.18832241,0.00019178,2]
[330370089,1719337855012,-765.33,0.00019178,2]
[330370090,1719337855021,-687.55,0.00019178,2]
[330370091,1719337855030,-500.0,0.00019178,2]
[330370092,1719337855040,-500.0,0.00019178,2]
[330370093,1719337855051,-1253.15,0.00019178,2]
[330370094,1719337855060,-500.0,0.00019178,2]
[330370095,1719337855070,-3214.85,0.00019178,2]
[330370096,1719337855079,-515.19372185,0.00019178,2]
[330370097,1719337855089,-500.0,0.00019178,2]
[330370098,1719337855098,-500.0,0.00019178,2]
[330370099,1719337855107,-500.0,0.00019178,2]
[330370100,1719337855117,-1365.93,0.00019178,2]
[330370101,1719337855127,-1196.83,0.00019178,2]
[330370102,1719337855137,-1014.47,0.00019178,2]
[330370103,1719337855148,-500.0,0.00019178,2]
[330370104,1719337855157,-2068.49,0.00019178,2]
[330370105,1719337855165,-3277.71,0.00019178,2]
[330370106,1719337855175,-4726.64,0.00019178,2]
[330370107,1719337855184,-2994.62,0.00019178,2]
[330370108,1719337855193,-1482.28,0.00019178,2]
[330370109,1719337855203,-5216.67,0.00019178,2]
[330370110,1719337855212,-4078.1,0.00019178,2]
[330370111,1719337855221,-500.0,0.00019178,2]
[330370112,1719337855230,-500.0,0.00019178,2]
[330370113,1719337855240,-500.0,0.00019178,2]
[330370114,1719337855250,-500.0,0.00019178,2]
[330370115,1719337855259,-790.4,0.00019178,2]
[330370116,1719337855268,-1827.73,0.00019178,2]
[330370117,1719337855279,-500.0,0.00019178,2]
[330370118,1719337855288,-557.64635397,0.00019178,2]
[330370119,1719337855298,-686.96,0.00019178,2]
[330370120,1719337855307,-151.0,0.00019178,2]
[330370121,1719337855316,-1436.06,0.00019178,2]
[330370122,1719337855325,-500.0,0.00019178,2]
[330370123,1719337855335,-500.0,0.00019178,2]
[330370124,1719337855345,-500.0,0.00019178,2]
[330370125,1719337855354,-500.0,0.00019178,2]
[330370126,1719337855364,-500.0,0.00019178,2]
[330370127,1719337855373,-245.95001375,0.00019178,2]
[330370128,1719337855383,-250.0,0.00019178,2]
[330370129,1719337855392,-1000.0,0.00019178,2]
[330370130,1719337855401,-1000.0,0.00019178,2]
[330370131,1719337855411,-1000.0,0.00019178,2]
[330370132,1719337855420,-1000.0,0.00019178,2]
[330370133,1719337855429,-1000.0,0.00019178,2]
[330370134,1719337855438,-1000.0,0.00019178,2]
[330370135,1719337855448,-1000.0,0.00019178,2]
[330370136,1719337855457,-1000.0,0.00019178,2]
[330370137,1719337855466,-1000.0,0.00019178,2]
[330370138,1719337855475,-1000.0,0.00019178,2]
[330370139,1719337855484,-1000.0,0.00019178,2]
[330370140,1719337855494,-1000.0,0.00019178,2]
[330370141,1719337855504,-1000.0,0.00019178,2]
[330370142,1719337855513,-1000.0,0.00019178,2]
[330370143,1719337855523,-1000.0,0.00019178,2]
[330370144,1719337855532,-1000.0,0.00019178,2]
[330370145,1719337855542,-1000.0,0.00019178,2]
[330370146,1719337855551,-1000.0,0.00019178,2]
[330370147,1719337855561,-1000.0,0.00019178,2]
[330370148,1719337855571,-1000.0,0.00019178,2]
[330370149,1719337855580,-1000.0,0.00019178,2]
[330370150,1719337855589,-1000.0,0.00019178,2]
[330370151,1719337855599,-1000.0,0.00019178,2]
[330370152,1719337855609,-1000.0,0.00019178,2]
[330370153,1719337855617,-1000.0,0.00019178,2]
[330370154,1719337855627,-1000.0,0.00019178,2]
[330370155,1719337855636,-1000.0,0.00019178,2]
[330370156,1719337855645,-1000.0,0.00019178,2]
[330370157,1719337855655,-1000.0,0.00019178,2]
[330370158,1719337855664,-1000.0,0.00019178,2]
[330370159,1719337855673,-1000.0,0.00019178,2]
[330370160,1719337855682,-1000.0,0.00019178,2]
[330370161,1719337855691,-1000.0,0.00019178,2]
[330370162,1719337855701,-259.44837065,0.00019186,2]
[330370163,1719337855710,-791.12226459,0.00019195,2]
[330370164,1719337855719,-12053.56851484,0.00019292,2]
[330370165,1719337855728,-791.12226459,0.00019313,2]
[330370166,1719337855738,-1000.0,0.00019352,2]
[330370167,1719337855747,-352.1,0.000194,2]
[330370168,1719337855757,-259.44837065,0.00019406,2]
[330370169,1719337855766,-791.12226459,0.0001943,2]
[330370170,1719337855775,-150.01,0.0001945,2]
[330370171,1719337855784,-1000.0,0.00019451,2]
[330370172,1719337855794,-500.0,0.00019451,2]
[330370173,1719337855808,-500.0,0.00019451,2]
[330370174,1719337855818,-500.0,0.00019451,2]
[330370175,1719337855827,-500.0,0.00019451,2]
[330370176,1719337855836,-500.0,0.00019451,2]
[330370177,1719337855845,-500.0,0.00019451,2]
[330370178,1719337855854,-500.0,0.00019451,2]
[330370179,1719337855864,-592488.0594996,0.00019452,7]
[330370180,1719337856620,-3390.03817492,0.00019452,7]
[330370181,1719337856646,-34980.52404114,0.00019452,7]
[330370182,1719337856674,-695.72565165,0.00019452,7]
[330370183,1719337857694,-3074.5,0.00019178,2]
[330370184,1719337857703,-500.0,0.00019178,2]
[330370185,1719337857712,-946410.3701764,0.00019452,7]
[330370186,1719337857722,-500.0,0.00019452,2]
[330370187,1719337857731,-500.0,0.00019452,2]
[330370188,1719337857741,-500.0,0.00019452,2]
[330370189,1719337857750,-501.24006371,0.00019452,2]
[330370190,1719337857760,-500.0,0.00019452,2]
[330370191,1719337857769,-500.0,0.00019452,2]
[330370192,1719337857779,-500.0,0.00019452,2]
[330370193,1719337857788,-500.0,0.00019452,2]
[330370194,1719337857798,-610.08099614,0.00019452,2]
[330370195,1719337857807,-501.38006604,0.00019452,2]
[330370196,1719337857816,-500.0,0.00019452,2]
[330370197,1719337857826,-505.77632448,0.00019452,2]
[330370198,1719337857837,-500.0,0.00019452,2]
[330370199,1719337857848,-239.25144631,0.00019452,2]
[330370200,1719337857859,-500.0,0.00019452,2]
[330370201,1719337857869,-500.0,0.00019452,2]
[330370202,1719337857878,-500.0,0.00019452,2]
[330370203,1719337857887,-500.0,0.00019452,2]
[330370204,1719337857896,-500.0,0.00019452,2]
[330370205,1719337857906,-500.0,0.00019452,2]
[330370206,1719337857915,-292.98950728,0.00019452,2]
[330370207,1719337857924,-500.0,0.00019452,2]
[330370208,1719337857933,-500.0,0.00019452,2]
[330370209,1719337857943,-500.0,0.00019452,2]
[330370210,1719337857952,-500.0,0.00019452,2]
[330370211,1719337857961,-500.0,0.00019452,2]
[330370212,1719337857971,-1190.53724276,0.00019452,2]
[330370213,1719337857981,-500.0,0.00019452,2]
[330370214,1719337857990,-500.0,0.00019452,2]
[330370215,1719337858000,-591.67872794,0.00019452,2]
[330370216,1719337858009,-1061.51,0.00019452,2]
[330370217,1719337858019,-500.0,0.00019452,2]
[330370218,1719337858028,-500.0,0.00019452,2]
[330370219,1719337858037,-524.25713269,0.00019452,2]
[330370220,1719337858046,-500.0,0.00019452,2]
[330370221,1719337858056,-2500.0,0.00019452,3]
[330370222,1719337858065,-500.0,0.00019452,2]
[330370223,1719337858074,-500.0,0.00019452,2]
[330370224,1719337858083,-500.0,0.00019452,2]
[330370225,1719337858092,-500.0,0.00019452,2]
[330370226,1719337858100,-500.0,0.00019452,2]
[330370227,1719337858110,-500.0,0.00019452,2]
[330370228,1719337858119,-500.0,0.00019452,2]
[330370229,1719337858128,-500.0,0.00019452,2]
[330370230,1719337858138,-500.0,0.00019452,2]
[330370231,1719337858149,-1041.25,0.00019452,2]
[330370232,1719337858159,-746.42,0.00019452,2]
[330370233,1719337858168,-500.0,0.00019452,2]
[330370234,1719337858177,-500.0,0.00019452,2]
[330370235,1719337858187,-867.14,0.00019452,2]
[330370236,1719337858196,-500.0,0.00019452,2]
[330370237,1719337858205,-500.0,0.00019452,2]
[330370238,1719337858214,-751.61,0.00019452,2]
[330370239,1719337858224,-500.0,0.00019452,2]
[330370240,1719337858234,-506.52651288,0.00019452,2]
[330370241,1719337858243,-1356.99,0.00019452,2]
[330370242,1719337858252,-500.0,0.00019452,2]
[330370243,1719337858262,-1175.6,0.00019452,2]
[330370244,1719337858271,-500.0,0.00019452,2]
[330370245,1719337858281,-500.0,0.00019452,2]
[330370246,1719337858290,-500.0,0.00019452,2]
[330370247,1719337858300,-500.0,0.00019452,2]
[330370248,1719337858309,-500.0,0.00019452,2]
[330370249,1719337858320,-1372.16,0.00019452,2]
[330370250,1719337858329,-2625.16,0.00019452,2]
[330370251,1719337858340,-500.0,0.00019452,2]
[330370252,1719337858350,-500.0,0.00019452,2]
[330370253,1719337858359,-500.0,0.00019452,2]
[330370254,1719337858369,-1523.16,0.00019452,2]
[330370255,1719337858378,-531.38,0.00019452,2]
[330370256,1719337858388,-761.88,0.00019452,2]
[330370257,1719337858397,-500.0,0.00019452,2]
[330370258,1719337858406,-1024.76,0.00019452,2]
[330370259,1719337858415,-500.0,0.00019452,2]
[330370260,1719337858424,-500.0,0.00019452,2]
[330370261,1719337858433,-983.79,0.00019452,2]
[330370262,1719337858443,-638.84,0.00019452,2]
[330370263,1719337858452,-1492.67,0.00019452,2]
[330370264,1719337858462,-680.18,0.00019452,2]
[330370265,1719337858471,-500.0,0.00019452,2]
[330370266,1719337858480,-1515.14,0.00019452,2]
[330370267,1719337858489,-1556.79,0.00019452,2]